[Event "13th Poti Nana Aleksandria Cup"]
[Site "Poti"]
[Date "2018.07.16"]
[Round "5"]
[White "Sattarov, Bobir"]
[Black "Eynullayev, Altay"]
[Result "1-0"]
[ECO "C00"]
[WhiteElo "2328"]
[BlackElo "2134"]
[Annotator "NA"]
[PlyCount "122"]
[EventDate "2018.07.13"]
[EventType "swiss"]
[EventCountry "GEO"]
[SourceTitle "playchess.com"]
[Source "ChessBase"]
[SourceQuality "1"]
[TimeControl "40/5400+30:1800+30"]

1. e4 {[%emt 0:05:37]} e6 {[%emt 0:00:00]} 2. f4 {[%emt 0:00:17]} d5 {[%emt 0:00:00]} 3. e5 {[%emt 0:00:07]} c5 {[%emt 0:00:10]} 4. Nf3 {[%emt 0:00:07]} Nc6 {[%emt 0:01:32]} 5. c3 {[%emt 0:00:11]} Nge7 {[%emt 0:00:36]} 6. Na3 {[%emt 0:01:07]} Nf5 {[%emt 0:08:31]} 7. Nc2 {[%emt 0:00:35] C00: French: Unusual White 2nd moves} d4 {[%emt 0:02:12]} (7... h5 8. Bd3 g6 9. O-O Be7 10. Bxf5 gxf5 11. d4 h4 12. dxc5 Bxc5+ 13. Be3 Be7 14. h3 b6 {1-0 (30) Nakamura,H (2775)-Seirawan,Y (2643) Saint Louis 2012}) 8. Bd3 {[%emt 0:00:14]} Be7 {[%emt 0:01:13]} 9. Qe2 {[%emt 0:00:14] LiveBook: 3 Partien} h5 {[%emt 0:07:21]} 10. Be4 {[%emt 0:01:15]} h4 $146 {[%emt 0:07:25]} ({Predecessor:} 10... Qb6 11. b3 Bd7 12. Bb2 dxc3 13. dxc3 O-O-O 14. O-O-O g6 {½-½ (41) Kubala,P (2315)-Obsivac,J (2345) Frydek Mistek 1998}) 11. d3 {[%emt 0:01:41]} Qb6 {[%emt 0:03:46]} 12. c4 {[%emt 0:05:59]} Bd7 {[%emt 0:04:15]} 13. O-O {[%emt 0:01:19]} Qc7 {[%emt 0:14:17]} 14. Bd2 {[%emt 0:02:25]} a6 {[%emt 0:08:21]} 15. Rfc1 {[%emt 0:07:13]} Rd8 {[%emt 0:04:29]} (15... a5 $11 {remains equal.}) 16. a3 {[%emt 0:03:03]} Na5 {[%emt 0:02:40]} 17. Bxa5 $1 {[%emt 0:02:51]} Qxa5 {[%emt 0:00:02]} 18. b4 {[%emt 0:00:20]} Qc7 {[%emt 0:00:23]} 19. Rcb1 {[%emt 0:21:00]} Bc6 {[%emt 0:04:18]} 20. Rb2 {[%emt 0:12:08]} Rd7 {[%emt 0:10:05]} (20... b5 $11) 21. Rab1 {[%emt 0:00:20]} g6 {[%emt 0:06:16]} 22. Bxc6 {[%emt 0:09:51]} Qxc6 {[%emt 0:00:38]} 23. b5 {[%emt 0:00:01]} axb5 {[%emt 0:00:35]} 24. Rxb5 {[%emt 0:00:01]} Bd8 {[%emt 0:03:28]} 25. Re1 {[%emt 0:07:10]} O-O {[%emt 0:02:14]} 26. Nd2 {[%emt 0:06:22]} Kg7 {[%emt 0:01:01]} 27. Ne4 {[%emt 0:00:07]} b6 28. g4 {[%emt 0:03:28]} hxg3 {[%emt 0:01:04]} 29. hxg3 {[%emt 0:00:01]} Rh8 {[%emt 0:01:15]} 30. Qg2 {[%emt 0:00:02]} Bc7 {[%emt 0:02:07]} (30... Qa8 $15) 31. Nf6 {[%emt 0:07:43]} Qxg2+ {[%emt 0:00:07]} 32. Kxg2 {[%emt 0:00:01]} Rdd8 {[%emt 0:00:08]} 33. Rbb1 {[%emt 0:00:06]} g5 {[%emt 0:02:25]} 34. Rh1 {[%emt 0:00:24]} gxf4 {[%emt 0:00:26]} 35. gxf4 {[%emt 0:00:01]} Nh4+ {[%emt 0:00:22]} 36. Kg3 {[%emt 0:00:02]} Ng6 {[%emt 0:00:23]} 37. Kf3 {[%emt 0:02:03]} Ra8 {[%emt 0:02:16]} 38. Ke4 {[%emt 0:00:42]} Rad8 {[%emt 0:00:51]} (38... Rxh1 $11 39. Rxh1 Kf8) 39. Rbg1 {[%emt 0:02:10]} (39. a4 $16) 39... Bb8 {[%emt 0:01:23]} (39... Rxh1 $14 40. Rxh1 Ne7) 40. a4 {[%emt 0:00:00]} Bc7 {[%emt 0:00:00]} 41. Na3 {[%emt 0:00:58]} Ra8 $2 {[%emt 0:10:02] [#]} (41... Rxh1 $14 42. Rxh1 Kf8) 42. Nb5 $1 {[%emt 0:00:56]} Bd8 {[%emt 0:04:03]} 43. Rxh8 {[%emt 0:05:25]} Kxh8 {[%emt 0:00:08]} 44. Rh1+ {[%emt 0:00:15]} Kg7 {[%emt 0:00:02]} 45. Rh7+ {[%emt 0:00:48]} Kf8 {[%emt 0:00:01]} 46. Nd6 {[%emt 0:02:17]} Ra7 {[%emt 0:00:40]} 47. f5 {[%emt 0:12:11]} exf5+ {[%emt 0:14:25]} 48. Kxf5 {[%emt 0:00:10]} Ne7+ {[%emt 0:02:14]} 49. Kg5 {[%emt 0:00:35]} Ng8 {[%emt 0:01:06]} 50. Rh8 {[%emt 0:01:49]} Bxf6+ {[%emt 0:00:06]} 51. exf6 {[%emt 0:00:01]} Rxa4 {[%emt 0:00:13]} 52. Nc8 {[%emt 0:00:20]} Ra2 {[%emt 0:00:33]} 53. Nxb6 {[%emt 0:02:09]} Rg2+ {[%emt 0:01:04]} 54. Kf5 {[%emt 0:00:07]} Ke8 {[%emt 0:00:59]} 55. Ke5 {[%emt 0:01:45]} Rg6 {[%emt 0:01:15]} 56. Na4 {[%emt 0:02:46]} Rg5+ {[%emt 0:00:39]} 57. Kd6 {[%emt 0:00:20]} Rg6 {[%emt 0:00:18]} 58. Kc7 {[%emt 0:01:40]} Rg5 $18 {[%emt 0:00:27]} 59. Kc8 {[%emt 0:01:36]} Kf8 {[%emt 0:00:27]} 60. Nb6 {[%emt 0:00:18]} Rg6 {[%emt 0:01:44]} 61. Kd8 {[%emt 0:01:09]} Rg7 1-0

[Event "13th Poti Nana Aleksandria Cup"]
[Site "Poti"]
[Date "2018.07.16"]
[Round "5"]
[White "Samadov, Read"]
[Black "Tihonov, Gennady"]
[Result "1-0"]
[ECO "B17"]
[WhiteElo "2037"]
[BlackElo "1845"]
[Annotator "NA RC"]
[PlyCount "169"]
[EventDate "2018.07.13"]
[EventType "swiss"]
[EventCountry "GEO"]
[SourceTitle "playchess.com"]
[Source "ChessBase"]
[SourceQuality "1"]
[TimeControl "40/5400+30:1800+30"]

1. e4 {[%emt 0:00:00]} c6 {[%emt 0:00:30]} 2. d4 {[%emt 0:00:00]} d5 {[%emt 0:00:10]} 3. Nc3 {[%emt 0:00:00]} dxe4 {[%emt 0:00:10]} 4. Nxe4 {[%emt 0:00:00]} Nd7 {[%emt 0:00:07]} 5. Ng5 {[%emt 0:00:44]} h6 {[%emt 0:01:52] B17: Caro-Kann: Modern Line (4...Nd7)} (5... Ngf6 6. Bd3 e6 7. N1f3 Bd6 8. Qe2 h6 9. Ne4 Nxe4 10. Qxe4 Qc7 11. O-O b6 12. Qg4 Kf8 13. Re1 c5 14. Qh4 Bb7 15. Be4 Be7 16. Qh3 Bxe4 17. Rxe4 Rd8 18. c3 Qb7 19. Re2 Kg8 {½-½ (75) Duda,J (2707)-Ivanchuk,V (2728) Tbilisi 2017}) 6. Ne6 {[%emt 0:00:38]} Qa5+ {[%emt 0:00:05]} 7. Bd2 {[%emt 0:00:42]} Qb6 {[%emt 0:00:06]} 8. Nxf8 {[%emt 0:06:09]} Nxf8 {[%emt 0:00:08]} 9. Bc3 {[%emt 0:03:23]} Nf6 {[%emt 0:01:55]} 10. Bd3 {[%emt 0:06:10]} Ne6 {[%emt 0:01:51]} 11. Ne2 {[%emt 0:02:06]} O-O {[%emt 0:04:06]} 12. O-O {[%emt 0:05:23]} Bd7 $146 {[%emt 0:00:44]} ({Predecessor:} 12... Rd8 13. Qd2 Qc7 14. Rfe1 Nd5 15. b3 Ng5 16. Bb2 Bg4 17. c4 Bxe2 18. Bxe2 Qf4 19. Rad1 Qxd2 {0-1 (19) Huber,M-Rattay,W IECG email 2002}) 13. Qd2 {[%emt 0:03:44]} Qc7 {[%emt 0:00:08]} 14. Rae1 {[%emt 0:14:50]} Rad8 {[%emt 0:00:15]} 15. Ng3 {[%emt 0:01:50]} Rfe8 {[%emt 0:07:34]} 16. Nf5 {[%emt 0:07:21]} Bc8 {[%emt 0:04:00]} 17. Re3 {[%emt 0:08:24]} Nf4 {[%emt 0:13:02]} 18. Rfe1 {[%emt 0:07:45]} Bxf5 {[%emt 0:00:42]} 19. Bxf5 {[%emt 0:01:51]} Rd5 {[%emt 0:01:43]} 20. Re5 {[%emt 0:02:00]} Rxe5 {[%emt 0:15:16]} 21. Rxe5 {[%emt 0:05:41]} N4d5 {[%emt 0:01:32]} 22. h3 {[%emt 0:02:39]} Rd8 {[%emt 0:03:27]} 23. Qe1 {[%emt 0:03:32]} e6 {[%emt 0:02:09]} 24. Bd3 {[%emt 0:00:47]} Nxc3 {[%emt 0:00:21]} 25. bxc3 {[%emt 0:02:04]} Rd5 {[%emt 0:01:21]} 26. Re3 {[%emt 0:01:34]} c5 {[%emt 0:01:16]} 27. dxc5 {[%emt 0:02:37]} Rxc5 {[%emt 0:00:36]} 28. c4 {[%emt 0:01:30]} Ra5 {[%emt 0:01:58]} 29. Qa1 {[%emt 0:02:31]} Qd6 {[%emt 0:04:57]} 30. Bf1 {[%emt 0:02:18]} Rc5 {[%emt 0:09:46]} 31. Rd3 {[%emt 0:01:02]} Qe7 {[%emt 0:00:48]} 32. Qd1 {[%emt 0:01:52]} Rc8 {[%emt 0:00:43]} 33. Rd6 {[%emt 0:01:07]} b6 {[%emt 0:02:06]} 34. Be2 {[%emt 0:00:49]} Nd5 {[%emt 0:05:03]} 35. Rxd5 {[%emt 0:00:47]} exd5 {[%emt 0:00:06]} 36. cxd5 {[%emt 0:00:08]} Re8 {[%emt 0:02:12]} 37. Bf1 {[%emt 0:01:13]} Qd6 {[%emt 0:00:44]} 38. c4 {[%emt 0:01:40]} Rd8 {[%emt 0:00:47]} (38... Qb4 $19 {bietet bessere Gewinnchancen.} 39. Be2 Qb2) 39. Qa4 {[%emt 0:00:53]} a5 {[%emt 0:01:08]} 40. g3 {[%emt 0:00:00]} Qd7 {[%emt 0:00:00]} 41. Qb3 {[%emt 0:04:18]} Qd6 {[%emt 0:01:26]} 42. Qe3 {[%emt 0:04:40]} Kf8 {[%emt 0:03:05]} 43. Qe4 {[%emt 0:01:27]} Re8 {[%emt 0:02:36]} 44. Qf5 {[%emt 0:01:44]} a4 {[%emt 0:00:46]} (44... Re1 $19 45. Qc8+ Ke7 46. Qb7+ Kf6) 45. Qc2 {[%emt 0:00:58]} a3 {[%emt 0:00:49]} 46. Qa4 {[%emt 0:01:48]} (46. Qc3 $17 {keeps fighting.}) 46... Rd8 {[%emt 0:01:19]} (46... Re1 $19 47. Kg2 g6) 47. Qb3 {[%emt 0:02:57]} Ra8 {[%emt 0:01:34]} 48. Qb1 {[%emt 0:01:13]} Kg8 {[%emt 0:00:16]} (48... Qf6 $19 49. Qd3 g6) 49. Bg2 {[%emt 0:02:04]} (49. Qe4 $17) 49... Ra4 {[%emt 0:02:59]} 50. Qb5 {[%emt 0:03:40] [#]} Rb4 $1 {[%emt 0:01:25]} 51. Qe8+ {[%emt 0:02:37]} Qf8 {[%emt 0:00:10]} 52. Qe5 {[%emt 0:04:25]} Rxc4 {[%emt 0:02:03]} 53. d6 {[%emt 0:01:26]} Rc1+ {[%emt 0:00:23]} 54. Kh2 {[%emt 0:00:13]} Rd1 {[%emt 0:00:09]} 55. Bd5 {[%emt 0:00:37]} Rd2 {[%emt 0:04:23]} (55... b5 $1 $15) 56. Kg2 $2 {[%emt 0:00:15]} (56. d7 $1 $11) 56... Qd8 {[%emt 0:01:32]} 57. Bxf7+ {[%emt 0:00:37]} Kf8 {[%emt 0:01:49]} 58. Bb3 {[%emt 0:03:08]} Qf6 {[%emt 0:03:08]} ({But not} 58... Qxd6 $6 59. Qc3 $11) 59. Qe3 {[%emt 0:00:22]} Rxd6 {[%emt 0:01:27]} 60. Ba4 {[%emt 0:00:15]} Qe7 {[%emt 0:02:46]} 61. Qxa3 {[%emt 0:00:24]} Rf6 {[%emt 0:02:37]} 62. Qd3 {[%emt 0:00:42]} g6 {[%emt 0:01:17]} 63. Bb3 {[%emt 0:00:25]} Kg7 {[%emt 0:00:58]} 64. Qd5 {[%emt 0:00:19]} Qf8 {[%emt 0:01:53]} 65. Qd4 {[%emt 0:00:30]} Kh7 {[%emt 0:00:40]} 66. h4 {[%emt 0:00:14]} h5 $11 {[%emt 0:01:03]} (66... Qd6 $17 67. Qe3 h5) 67. Kg1 {[%emt 0:01:19]} Rd6 {[%emt 0:02:00]} 68. Qe3 {[%emt 0:00:29]} Qf6 {[%emt 0:00:53]} 69. Kg2 {[%emt 0:00:42]} Rd8 {[%emt 0:01:09]} 70. Qe4 {[%emt 0:00:47]} Rf8 {[%emt 0:00:37]} 71. Qe3 {[%emt 0:00:24]} Qc6+ {[%emt 0:00:47]} 72. Kg1 {[%emt 0:00:07]} Re8 {[%emt 0:01:55]} 73. Qd2 {[%emt 0:01:05]} Rc8 {[%emt 0:01:14]} 74. Qd3 {[%emt 0:00:27]} Re8 {[%emt 0:01:33]} 75. Qd1 {[%emt 0:00:18]} Qe4 {[%emt 0:00:45]} 76. Qd7+ {[%emt 0:00:25]} Qe7 {[%emt 0:00:19]} 77. Qb5 {[%emt 0:00:55]} Qd8 {[%emt 0:02:39]} 78. Qc6 {[%emt 0:00:30]} Re7 {[%emt 0:01:54]} 79. Bc2 {[%emt 0:00:22]} Rg7 {[%emt 0:00:27]} 80. Qf3 {[%emt 0:00:24]} Kh8 {[%emt 0:00:25]} 81. Qf4 {[%emt 0:00:25]} Qc8 {[%emt 0:00:38]} 82. Qh6+ {[%emt 0:00:26]} Rh7 {[%emt 0:00:44]} 83. Qxg6 {[%emt 0:00:04]} Rg7 {[%emt 0:01:27]} 84. Qxh5+ {[%emt 0:00:08]} Kg8 {[%emt 0:00:13]} 85. Bb3+ {[%emt 0:00:02]} 1-0

[Event "13th Poti Nana Aleksandria Cup"]
[Site "Poti"]
[Date "2018.07.16"]
[Round "5"]
[White "Gordon, Evgeny"]
[Black "Bibilashvili, Lali"]
[Result "1/2-1/2"]
[ECO "E61"]
[WhiteElo "2016"]
[BlackElo "1816"]
[Annotator "NA RC"]
[PlyCount "139"]
[EventDate "2018.07.13"]
[EventType "swiss"]
[EventCountry "GEO"]
[SourceTitle "playchess.com"]
[Source "ChessBase"]
[SourceQuality "1"]
[TimeControl "40/5400+30:1800+30"]

1. d4 {[%emt 0:00:00]} Nf6 {[%emt 0:00:20]} 2. c4 {[%emt 0:00:00]} g6 {[%emt 0:00:03]} 3. Nc3 {[%emt 0:00:00]} Bg7 {[%emt 0:00:04]} 4. e3 {[%emt 0:00:49]} O-O {[%emt 0:00:06]} 5. Nf3 {[%emt 0:00:05]} d6 {[%emt 0:00:13]} 6. Be2 {[%emt 0:00:19]} Nbd7 {[%emt 0:00:13]} 7. O-O {[%emt 0:00:35]} e5 {[%emt 0:00:14]} 8. Qc2 {[%emt 0:01:00]} c6 {[%emt 0:00:18]} 9. Rd1 {[%emt 0:00:32]} Qc7 {[%emt 0:02:49] E61: King's Indian: Early deviations for White, including Smyslov System} 10. b4 {[%emt 0:07:46]} (10. b3 Re8 11. Ba3 exd4 12. Nxd4 Nc5 13. Bf3 Bg4 14. Rac1 Rad8 15. h3 Bxf3 16. Nxf3 a5 17. Bxc5 dxc5 18. Rxd8 Rxd8 {1-0 (72) Ernst,S (2535)-Van Foreest,J (2578) Utrecht 2016}) 10... a5 $146 {[%emt 0:02:37]} ({Predecessor:} 10... Re8 11. Bb2 exd4 12. Nxd4 Ne5 13. b5 Bg4 14. Bxg4 Nexg4 15. h3 Ne5 16. Nce2 Rac8 17. bxc6 bxc6 18. Qa4 Nfd7 19. Rac1 Nc5 20. Qa6 {0-1 (20) Sabuk,P (2382)-Brodowski,P (2430) Katowice 2017}) 11. b5 {[%emt 0:08:15]} Ne8 {[%emt 0:20:59]} (11... exd4 $11 {remains equal.} 12. exd4 Nb6) 12. Bb2 {[%emt 0:07:58]} f5 {[%emt 0:05:14]} 13. Rac1 {[%emt 0:03:04]} exd4 {[%emt 0:12:38]} 14. exd4 {[%emt 0:04:27]} Bh6 {[%emt 0:03:40]} 15. Rb1 {[%emt 0:02:54]} Nef6 {[%emt 0:00:06] [#]} (15... Ndf6 $16 16. Qb3 Be6) 16. Bc1 {[%emt 0:01:40]} (16. bxc6 $1 $18 bxc6 17. d5) 16... Bg7 {[%emt 0:03:20]} 17. Ng5 {[%emt 0:10:18]} Re8 {[%emt 0:00:24]} 18. Bf1 {[%emt 0:06:50]} h6 {[%emt 0:00:52]} 19. Nf3 {[%emt 0:00:38]} Ne4 {[%emt 0:00:49]} 20. Nxe4 {[%emt 0:01:09]} fxe4 {[%emt 0:06:05]} 21. Nh4 {[%emt 0:06:25]} Nf8 {[%emt 0:01:48]} 22. g3 {[%emt 0:01:51]} g5 {[%emt 0:03:57]} 23. Ng2 {[%emt 0:00:05]} Bg4 {[%emt 0:00:43]} 24. Be2 {[%emt 0:00:12]} Bf5 {[%emt 0:13:21]} 25. Be3 {[%emt 0:02:10]} Qf7 {[%emt 0:03:04]} 26. bxc6 {[%emt 0:02:06]} bxc6 {[%emt 0:00:03]} 27. Rb6 {[%emt 0:01:09]} Qc7 {[%emt 0:07:28]} 28. Rdb1 {[%emt 0:05:28]} Bc8 {[%emt 0:03:23]} 29. Qa4 {[%emt 0:03:25]} Bd7 {[%emt 0:03:14]} 30. Rb7 {[%emt 0:05:40]} Qd8 {[%emt 0:00:02]} 31. Bh5 {[%emt 0:06:01]} Re7 {[%emt 0:00:51]} 32. Qa3 {[%emt 0:04:39]} Be6 {[%emt 0:01:09]} 33. Be2 {[%emt 0:00:47]} Rxb7 {[%emt 0:02:14]} 34. Rxb7 {[%emt 0:00:01]} Qc8 {[%emt 0:00:10]} 35. Qb2 {[%emt 0:03:06]} Nd7 {[%emt 0:02:08]} 36. Qb1 {[%emt 0:00:28]} Bf5 {[%emt 0:00:33]} 37. h4 {[%emt 0:01:40]} gxh4 $2 {[%emt 0:01:07]} (37... Bf6 $14) 38. Nxh4 {[%emt 0:00:09]} Bh7 {[%emt 0:00:06]} 39. Bg4 {[%emt 0:00:19]} Rb8 {[%emt 0:00:35]} 40. Rxb8 {[%emt 0:00:00]} Qxb8 {[%emt 0:00:00]} 41. Qxb8+ {[%emt 0:23:25]} Nxb8 {[%emt 0:00:08]} 42. Be6+ {[%emt 0:00:10]} Kf8 {[%emt 0:01:17]} 43. Nf5 {[%emt 0:00:19]} Bxf5 {[%emt 0:00:04]} 44. Bxf5 {[%emt 0:00:02]} d5 {[%emt 0:00:06]} 45. cxd5 {[%emt 0:02:32]} cxd5 {[%emt 0:00:03]} 46. Be6 {[%emt 0:00:07]} Nc6 {[%emt 0:00:41]} 47. Bxd5 {[%emt 0:00:18]} Nxd4 {[%emt 0:01:37]} 48. Bxe4 {[%emt 0:00:14]} a4 {[%emt 0:02:19]} 49. Kg2 {[%emt 0:01:50]} Ke7 {[%emt 0:00:04]} 50. Kh3 {[%emt 0:00:49]} Kd6 {[%emt 0:00:17]} 51. Kg4 {[%emt 0:00:19]} Ne2 {[%emt 0:11:51]} 52. Kh5 {[%emt 0:02:28]} a3 {[%emt 0:02:54]} 53. Bh7 {[%emt 0:03:57]} Nc3 {[%emt 0:02:11]} 54. Bg8 $18 {[%emt 0:00:13]} Ne4 {[%emt 0:00:35]} 55. Kg6 {[%emt 0:01:13]} Be5 {[%emt 0:00:50]} 56. Ba7 {[%emt 0:03:09]} Kc6 {[%emt 0:06:40]} 57. Kf5 {[%emt 0:00:59]} Bxg3 {[%emt 0:05:47]} 58. Kxe4 {[%emt 0:00:09]} Bd6 {[%emt 0:00:07]} 59. Be3 {[%emt 0:00:17]} h5 {[%emt 0:00:03]} 60. Kf5 {[%emt 0:00:23]} h4 {[%emt 0:00:17]} 61. Kg4 {[%emt 0:00:08]} Be7 {[%emt 0:00:09]} 62. f4 {[%emt 0:00:28]} Kb5 {[%emt 0:02:35]} 63. Bf2 {[%emt 0:00:13]} Kb4 {[%emt 0:00:04]} 64. Bxh4 {[%emt 0:00:11]} Bd6 {[%emt 0:00:04]} 65. Bf6 {[%emt 0:00:20]} Bf8 {[%emt 0:00:22]} 66. Kf5 {[%emt 0:00:11]} Bd6 {[%emt 0:00:28]} 67. Be5 {[%emt 0:00:07]} Bf8 {[%emt 0:00:30]} 68. Ke6 {[%emt 0:00:15]} Kc4 {[%emt 0:00:30]} 69. f5 {[%emt 0:00:19]} Kd3 {[%emt 0:00:04]} 70. Bd6 {[%emt 0:00:16]} 1/2-1/2

[Event "13th Poti Nana Aleksandria Cup"]
[Site "Poti"]
[Date "2018.07.16"]
[Round "5"]
[White "Tsotsonava, Elene"]
[Black "Nikulina, Alena"]
[Result "1/2-1/2"]
[ECO "B29"]
[WhiteElo "1647"]
[BlackElo "1959"]
[Annotator "NA RC"]
[PlyCount "93"]
[EventDate "2018.07.13"]
[EventType "swiss"]
[EventCountry "GEO"]
[SourceTitle "playchess.com"]
[Source "ChessBase"]
[SourceQuality "1"]
[TimeControl "40/5400+30:1800+30"]

1. e4 {[%emt 0:00:00]} c5 {[%emt 0:10:24]} 2. Nf3 {[%emt 0:00:00]} Nf6 {[%emt 0:00:19]} 3. Nc3 {[%emt 0:00:20]} Nc6 {[%emt 0:01:48]} 4. d4 {[%emt 0:00:09]} d5 {[%emt 0:04:41]} 5. exd5 {[%emt 0:04:08]} Nxd5 {[%emt 0:03:56]} 6. Ne4 {[%emt 0:12:23] B29: Sizilianisch (Rubinstein-Variante)} (6. Nxd5 Qxd5 7. Be3 cxd4 8. Nxd4 a6 9. c3 e5 10. Qb3 Qxb3 11. Nxb3 Be6 12. O-O-O f5 13. f3 Kf7 14. Be2 Be7 15. Nc5 Bxc5 16. Bxc5 Rhd8 17. b3 Rxd1+ 18. Rxd1 {1-0 (48) Alekseev,E (2616)-Kantans,T (2484) Katowice 2017}) 6... cxd4 {[%emt 0:36:29]} 7. Nxd4 {[%emt 0:00:38]} e5 {[%emt 0:00:58]} 8. Nxc6 {[%emt 0:00:39]} bxc6 {[%emt 0:00:06]} 9. Be2 {[%emt 0:02:21]} Be7 {[%emt 0:01:47]} 10. O-O {[%emt 0:00:29]} O-O {[%emt 0:02:52]} 11. c4 {[%emt 0:00:37]} Nb6 $146 {[%emt 0:00:21]} ({Vorgänger:} 11... Nb4 12. Qa4 Bf5 13. Rd1 Qc7 {½-½ (52) Briukhovich,A-Babiy,P Kiev 2003}) 12. Be3 {[%emt 0:01:20]} f5 {[%emt 0:01:03]} 13. Nc3 {[%emt 0:01:00]} Be6 {[%emt 0:02:41]} 14. b3 {[%emt 0:00:29]} Bf6 {[%emt 0:07:33]} 15. Qc2 {[%emt 0:00:53]} Qc7 {[%emt 0:00:53]} 16. Rad1 {[%emt 0:00:58]} Rad8 {[%emt 0:02:31]} 17. f3 {[%emt 0:00:40]} Qf7 {[%emt 0:03:53]} 18. Bd3 {[%emt 0:02:00]} Be7 {[%emt 0:02:10]} 19. Rfe1 {[%emt 0:01:08]} Nc8 {[%emt 0:05:52]} 20. Bf2 {[%emt 0:00:24]} Bd6 {[%emt 0:00:38]} 21. Na4 {[%emt 0:01:48]} Qh5 {[%emt 0:02:42]} (21... Qe7 $14) 22. Bg3 {[%emt 0:06:58]} e4 {[%emt 0:01:29]} 23. Bxd6 {[%emt 0:00:21]} Nxd6 {[%emt 0:02:48]} 24. c5 {[%emt 0:10:02]} exd3 {[%emt 0:01:30]} 25. Rxd3 {[%emt 0:00:08]} Ne4 {[%emt 0:01:02]} 26. Rxd8 {[%emt 0:03:38]} Rxd8 {[%emt 0:00:12]} 27. fxe4 {[%emt 0:00:13]} fxe4 {[%emt 0:00:31]} 28. Qxe4 {[%emt 0:00:55]} Bd5 {[%emt 0:00:06]} 29. Qe7 {[%emt 0:00:35]} Rf8 {[%emt 0:00:24]} 30. Nc3 {[%emt 0:05:39]} Qf5 {[%emt 0:01:23]} 31. Qe3 {[%emt 0:01:17]} Bf7 {[%emt 0:00:11]} 32. Rf1 {[%emt 0:01:55]} Qd7 {[%emt 0:00:41]} 33. Rd1 $16 {[%emt 0:03:50]} Qg4 {[%emt 0:00:29]} 34. Rd4 {[%emt 0:05:48]} Qf5 {[%emt 0:00:55]} 35. Rf4 {[%emt 0:03:29]} Qc2 {[%emt 0:00:28]} 36. Rf2 {[%emt 0:00:25]} Qg6 {[%emt 0:00:05]} 37. Qe4 {[%emt 0:00:36]} Qg5 {[%emt 0:00:30]} 38. Qd4 {[%emt 0:05:37]} Rd8 {[%emt 0:00:30]} 39. Qf4 {[%emt 0:01:10]} Qe7 {[%emt 0:00:54]} 40. Ne4 {[%emt 0:00:00]} Bd5 {[%emt 0:00:00]} 41. Qg5 {[%emt 0:03:48]} Qxg5 {[%emt 0:05:05]} 42. Nxg5 {[%emt 0:00:08]} a5 {[%emt 0:00:15]} 43. Rf4 {[%emt 0:01:02]} Rb8 {[%emt 0:04:09]} 44. Kf2 {[%emt 0:02:05]} Rb5 {[%emt 0:00:26]} 45. Ne4 {[%emt 0:00:28]} Bxe4 {[%emt 0:07:23]} 46. Rxe4 {[%emt 0:00:12]} Rxc5 {[%emt 0:00:02]} 47. Rc4 {[%emt 0:11:52]} 1/2-1/2

[Event "13th Poti Nana Aleksandria Cup"]
[Site "Poti"]
[Date "2018.07.17"]
[Round "6"]
[White "Hayrapetyan, Hovik"]
[Black "Aliyev, Ravan"]
[Result "1/2-1/2"]
[ECO "E68"]
[WhiteElo "2453"]
[BlackElo "2324"]
[Annotator "RC"]
[PlyCount "114"]
[EventDate "2018.07.13"]
[EventType "swiss"]
[EventCountry "GEO"]
[SourceTitle "playchess.com"]
[Source "ChessBase"]
[SourceQuality "1"]
[TimeControl "40/5400+30:1800+30"]

1. Nf3 {[%emt 0:00:00]} Nf6 {[%emt 0:00:04]} 2. g3 {[%emt 0:01:08]} g6 {[%emt 0:01:52]} 3. Bg2 {[%emt 0:00:07]} Bg7 {[%emt 0:00:04]} 4. O-O {[%emt 0:00:49]} O-O {[%emt 0:00:07]} 5. c4 {[%emt 0:01:16]} d6 {[%emt 0:00:59]} 6. d4 {[%emt 0:01:02]} Nbd7 {[%emt 0:00:12]} 7. Nc3 {[%emt 0:00:13]} e5 {[%emt 0:00:06]} 8. e4 {[%emt 0:00:28]} exd4 {[%emt 0:01:39]} 9. Nxd4 {[%emt 0:00:07]} Re8 {[%emt 0:00:06]} 10. Re1 {[%emt 0:08:34]} a6 {[%emt 0:04:43]} 11. h3 {[%emt 0:01:10]} Rb8 {[%emt 0:01:36]} 12. Be3 Ne5 13. b3 {[%emt 0:02:27]} c5 {[%emt 0:07:31]} 14. Nde2 {[%emt 0:01:39]} b5 {[%emt 0:09:28]} 15. cxb5 {[%emt 0:22:58]} axb5 {[%emt 0:00:22]} 16. Qc2 {[%emt 0:02:13]} b4 {[%emt 0:17:58]} 17. Na4 {[%emt 0:03:01]} Bb7 {[%emt 0:01:53]} 18. Rad1 {[%emt 0:02:03]} Qe7 {[%emt 0:00:40]} 19. g4 {[%emt 0:06:21]} Nxe4 {[%emt 0:11:28]} 20. Bxe4 {[%emt 0:00:47]} Nxg4 {[%emt 0:05:45]} 21. Bxb7 {[%emt 0:07:59]} Nxe3 {[%emt 0:01:06]} 22. fxe3 {[%emt 0:00:01]} Qxe3+ {[%emt 0:07:06]} 23. Kg2 {[%emt 0:01:32]} Qg5+ {[%emt 0:01:24]} 24. Ng3 {[%emt 0:00:46]} Rxe1 {[%emt 0:00:18]} 25. Rxe1 {[%emt 0:00:04]} Rxb7 {[%emt 0:01:46]} 26. Re8+ {[%emt 0:03:33]} Bf8 {[%emt 0:00:02]} 27. Qe4 {[%emt 0:01:26]} Re7 {[%emt 0:03:53]} 28. Rxe7 {[%emt 0:06:29]} Bxe7 {[%emt 0:03:44]} 29. Nb6 {[%emt 0:01:06]} Kg7 {[%emt 0:04:57]} 30. h4 {[%emt 0:16:07]} Qxh4 {[%emt 0:10:40]} 31. Nc8 {[%emt 0:04:55]} Qxe4+ {[%emt 0:01:36]} 32. Nxe4 {[%emt 0:00:04]} Bf8 {[%emt 0:00:24]} 33. Nexd6 {[%emt 0:00:18]} f5 {[%emt 0:01:38]} 34. Nc4 {[%emt 0:03:49]} Kf6 {[%emt 0:00:34]} 35. N8b6 {[%emt 0:00:22]} Ke6 {[%emt 0:00:38]} 36. a4 {[%emt 0:00:48]} bxa3 {[%emt 0:00:10]} 37. Nxa3 {[%emt 0:00:02]} g5 {[%emt 0:01:04]} 38. Nc2 {[%emt 0:00:57]} h5 {[%emt 0:00:42]} 39. Ne1 {[%emt 0:00:41]} g4 {[%emt 0:00:43]} 40. Nd3 {[%emt 0:00:00]} h4 {[%emt 0:00:00]} 41. Nf4+ {[%emt 0:02:45]} Kf7 {[%emt 0:06:30]} 42. Nd7 {[%emt 0:03:41]} Bd6 {[%emt 0:02:16]} 43. Nd3 {[%emt 0:00:23]} h3+ {[%emt 0:00:11]} 44. Kg1 {[%emt 0:00:05]} Ke6 {[%emt 0:01:07]} 45. N7xc5+ {[%emt 0:15:55]} Kd5 {[%emt 0:00:17]} 46. Nd7 {[%emt 0:00:32]} Ke4 {[%emt 0:11:21]} 47. Nf2+ {[%emt 0:01:26]} Kf3 {[%emt 0:00:01]} 48. Nxh3 {[%emt 0:00:30]} gxh3 {[%emt 0:00:04]} 49. b4 {[%emt 0:02:36]} Ke2 {[%emt 0:01:09]} 50. b5 {[%emt 0:04:09]} f4 {[%emt 0:00:52]} 51. Nf6 {[%emt 0:00:02]} f3 {[%emt 0:00:39]} 52. Ng4 {[%emt 0:00:02]} Bc7 {[%emt 0:07:19]} 53. Kh1 {[%emt 0:00:02]} Bf4 {[%emt 0:02:28]} 54. b6 {[%emt 0:01:04]} Bd6 {[%emt 0:00:19]} 55. b7 {[%emt 0:00:09]} Bb8 {[%emt 0:00:35]} 56. Nf2 {[%emt 0:00:48]} Bc7 {[%emt 0:00:57]} 57. Nxh3 {[%emt 0:00:44]} f2 {[%emt 0:00:23]} 1/2-1/2